fUST/lending_fUST_20240223
["ID","MTS","AMOUNT","RATE_DAILY","PERIOD"]
[314928700,1708677046645,-500.0,0.00019178,2]
[314928701,1708677046654,-500.0,0.00019178,2]
[314928702,1708677046663,-500.0,0.00019178,2]
[314928703,1708677046673,-500.0,0.00019178,2]
[314928704,1708677046682,-500.0,0.00019178,2]
[314928705,1708677046691,-500.0,0.00019178,2]
[314928706,1708677046700,-500.0,0.00019178,2]
[314928707,1708677046709,-500.0,0.00019178,2]
[314928708,1708677046718,-500.0,0.00019178,2]
[314928709,1708677046727,-500.0,0.00019178,2]
[314928710,1708677046736,-511.42,0.00019178,2]
[314928711,1708677046745,-1224.58,0.00019178,2]
[314928712,1708677046755,-500.0,0.00019178,2]
[314928713,1708677046765,-4423.67,0.00019178,2]
[314928714,1708677046774,-7100.36,0.00019178,2]
[314928715,1708677046784,-601.05,0.00019178,2]
[314928716,1708677046793,-500.0,0.00019178,2]
[314928717,1708677046802,-500.0,0.00019178,2]
[314928718,1708677046810,-1784.51,0.00019178,2]
[314928719,1708677046820,-1589.46,0.00019178,2]
[314928720,1708677046829,-841.07,0.00019178,2]
[314928721,1708677046838,-500.0,0.00019178,2]
[314928722,1708677046848,-500.0,0.00019178,2]
[314928723,1708677046857,-629.55043623,0.00019178,2]
[314928724,1708677046865,-500.0,0.00019178,2]
[314928725,1708677046874,-500.0,0.00019178,2]
[314928726,1708677046882,-500.0,0.00019178,2]
[314928727,1708677046891,-500.0,0.00019178,2]
[314928728,1708677046900,-1903.92,0.00019178,2]
[314928729,1708677046909,-618.62,0.00019178,2]
[314928730,1708677046919,-500.0,0.00019178,2]
[314928731,1708677046928,-1418.77,0.00019178,2]
[314928732,1708677046938,-612.17,0.00019178,2]
[314928733,1708677046947,-500.0,0.00019178,2]
[314928734,1708677046956,-500.0,0.00019178,2]
[314928735,1708677046965,-500.0,0.00019178,2]
[314928736,1708677046974,-1724.86,0.00019178,2]
[314928737,1708677046983,-569.28,0.00019178,2]
[314928738,1708677046993,-500.0,0.00019178,2]
[314928739,1708677047002,-500.0,0.00019178,2]
[314928740,1708677047011,-500.0,0.00019178,2]
[314928741,1708677047021,-500.0,0.00019178,2]
[314928742,1708677047030,-1325.89,0.00019178,2]
[314928743,1708677047039,-500.0,0.00019178,2]
[314928744,1708677047048,-500.0,0.00019178,2]
[314928745,1708677047058,-500.0,0.00019178,2]
[314928746,1708677047067,-1017.24,0.00019178,2]
[314928747,1708677047076,-500.0,0.00019178,2]
[314928748,1708677047085,-500.0,0.00019178,2]
[314928749,1708677047095,-500.0,0.00019178,2]
[314928750,1708677047106,-14289.14,0.00019178,2]
[314928751,1708677047115,-500.0,0.00019178,2]
[314928752,1708677047124,-500.0,0.00019178,2]
[314928753,1708677047134,-500.0,0.00019178,2]
[314928754,1708677047145,-500.0,0.00019178,2]
[314928755,1708677047158,-500.0,0.00019178,2]
[314928756,1708677047167,-500.0,0.00019178,2]
[314928757,1708677047177,-14344.47021277,0.00019178,2]
[314928758,1708677047190,-1062.38978723,0.00019178,2]
[314928759,1708677047200,-1718.96,0.00019178,2]
[314928760,1708677047209,-2122.55,0.00019178,2]
[314928761,1708677047219,-500.0,0.00019178,2]
[314928762,1708677047228,-562.41,0.00019178,2]
[314928763,1708677047238,-500.0,0.00019178,2]
[314928764,1708677047247,-163.97744344,0.00019178,2]
[314928765,1708677047257,-500.0,0.00019178,2]
[314928766,1708677047267,-500.0,0.00019178,2]
[314928767,1708677047276,-1732.47,0.00019178,2]
[314928768,1708677047286,-500.49380648,0.00019178,2]
[314928769,1708677047295,-500.0,0.00019178,2]
[314928770,1708677047305,-500.0,0.00019178,2]
[314928771,1708677047314,-500.0,0.00019178,2]
[314928772,1708677047324,-500.0,0.00019178,2]
[314928773,1708677047333,-500.0,0.00019178,2]
[314928774,1708677047343,-2892.94,0.00019178,2]
[314928775,1708677047352,-500.0,0.00019178,2]
[314928776,1708677047361,-985.7,0.00019178,2]
[314928777,1708677047371,-500.0,0.00019178,2]
[314928778,1708677047380,-500.0,0.00019178,2]
[314928779,1708677047389,-1021.7,0.00019178,2]
[314928780,1708677047398,-500.0,0.00019178,2]
[314928781,1708677047408,-500.0,0.00019178,2]
[314928782,1708677047417,-500.0,0.00019178,2]
[314928783,1708677047426,-500.0,0.00019178,2]
[314928784,1708677047435,-500.0,0.00019178,2]
[314928785,1708677047444,-601.97,0.00019178,2]
[314928786,1708677047454,-788.34,0.00019178,2]
[314928787,1708677047465,-7396.44,0.00019178,2]
[314928788,1708677047475,-1159.03,0.00019178,2]
[314928789,1708677047485,-500.0,0.00019178,2]
[314928790,1708677047494,-500.0,0.00019178,2]
[314928791,1708677047505,-500.0,0.00019178,2]
[314928792,1708677047514,-500.0,0.00019178,2]
[314928793,1708677047523,-2276.64,0.00019178,2]
[314928794,1708677047533,-500.0,0.00019178,2]
[314928795,1708677047542,-500.0,0.00019178,2]
[314928796,1708677047552,-500.0,0.00019178,2]
[314928797,1708677047561,-500.0,0.00019178,2]
[314928798,1708677047571,-500.0,0.00019178,2]
[314928799,1708677047580,-500.0,0.00019178,2]
[314928800,1708677047591,-500.0,0.00019178,2]
[314928801,1708677047601,-500.0,0.00019178,2]
[314928802,1708677047611,-551.66,0.00019178,2]
[314928803,1708677047620,-656.24,0.00019178,2]
[314928804,1708677047629,-1264.9,0.00019178,2]
[314928805,1708677047639,-170.82198,0.00019178,2]
[314928806,1708677047649,-166.666666,0.00019178,2]
[314928807,1708677047660,-7461.73759155,0.00019352,2]
[314928808,1708677047670,-500.0,0.00019451,2]
[314928809,1708677047680,-500.0,0.00019451,2]
[314928810,1708677047689,-571.0,0.00019452,2]
[314928811,1708677047698,-2449.46,0.00019452,2]
[314928812,1708677047707,-500.0,0.00019452,2]
[314928813,1708677047717,-628.56,0.00019452,2]
[314928814,1708677047726,-711.41,0.00019452,2]
[314928815,1708677047735,-500.0,0.00019452,2]
[314928816,1708677047745,-544.48,0.00019452,2]
[314928817,1708677047754,-1428.95,0.00019452,2]
[314928818,1708677047764,-500.0,0.00019452,2]
[314928819,1708677047773,-500.0,0.00019452,2]
[314928820,1708677047782,-500.0,0.00019452,2]
[314928821,1708677047792,-1000.0,0.00019452,2]
[314928822,1708677047801,-582.12,0.00019452,2]
[314928823,1708677047810,-870.51,0.00019452,2]
[314928824,1708677047820,-500.0,0.00019452,2]
[314928825,1708677047829,-500.0,0.00019452,2]
[314928826,1708677047838,-500.0,0.00019452,2]
[314928827,1708677047848,-500.0,0.00019452,2]
[314928828,1708677047857,-500.0,0.00019452,2]
[314928829,1708677047867,-500.0,0.00019452,2]
[314928830,1708677047876,-1224.58,0.00019452,2]
[314928831,1708677047888,-4423.67,0.00019452,2]
[314928832,1708677047898,-7100.36,0.00019452,2]
[314928833,1708677047906,-500.0,0.00019452,2]
[314928834,1708677047916,-500.0,0.00019452,2]
[314928835,1708677047925,-1784.51,0.00019452,2]
[314928836,1708677047934,-1589.46,0.00019452,2]
[314928837,1708677047943,-841.07,0.00019452,2]
[314928838,1708677047952,-500.0,0.00019452,2]
[314928839,1708677047961,-500.0,0.00019452,2]
[314928840,1708677047971,-500.0,0.00019452,2]
[314928841,1708677047980,-1903.92,0.00019452,2]
[314928842,1708677047989,-531.10570731,0.00019452,2]
[314928843,1708677047998,-1418.77,0.00019452,2]
[314928844,1708677048008,-500.0,0.00019452,2]
[314928845,1708677048017,-500.0,0.00019452,2]
[314928846,1708677048026,-1724.86,0.00019452,2]
[314928847,1708677048035,-500.0,0.00019452,2]
[314928848,1708677048045,-500.0,0.00019452,2]
[314928849,1708677048054,-500.0,0.00019452,2]
[314928850,1708677048064,-1325.89,0.00019452,2]
[314928851,1708677048073,-437.92881831,0.00019452,2]
[314928852,1708677048082,-1017.24,0.00019452,2]
[314928853,1708677048092,-584.19,0.00019452,2]
[314928854,1708677048101,-500.0,0.00019452,2]
[314928855,1708677048110,-500.0,0.00019452,2]
[314928856,1708677048119,-14289.14,0.00019452,2]
[314928857,1708677048128,-500.0,0.00019452,2]
[314928858,1708677048137,-500.0,0.00019452,2]
[314928859,1708677048147,-500.0,0.00019452,2]
[314928860,1708677048157,-500.0,0.00019452,2]
[314928861,1708677048168,-500.0,0.00019452,2]
[314928862,1708677048177,-15406.86,0.00019452,2]
[314928863,1708677048187,-2122.55,0.00019452,2]
[314928864,1708677048195,-500.0,0.00019452,2]
[314928865,1708677048206,-1718.96,0.00019452,2]
[314928866,1708677048215,-500.0,0.00019452,2]
[314928867,1708677048224,-500.0,0.00019452,2]
[314928868,1708677048233,-500.0,0.00019452,2]
[314928869,1708677048243,-1732.47,0.00019452,2]
[314928870,1708677048253,-500.0,0.00019452,2]
[314928871,1708677048263,-500.0,0.00019452,2]
[314928872,1708677048272,-374.44173676,0.00019452,2]
[314928873,1708677048281,-500.0,0.00019452,2]
[314928874,1708677048290,-500.0,0.00019452,2]
[314928875,1708677048300,-2892.94,0.00019452,2]
[314928876,1708677048309,-500.0,0.00019452,2]
[314928877,1708677048318,-985.7,0.00019452,2]
[314928878,1708677048327,-500.0,0.00019452,2]
[314928879,1708677048336,-1021.7,0.00019452,2]
[314928880,1708677048345,-500.0,0.00019452,2]
[314928881,1708677048354,-500.0,0.00019452,2]
[314928882,1708677048364,-601.97,0.00019452,2]
[314928883,1708677048373,-788.34,0.00019452,2]
[314928884,1708677048382,-7396.44,0.00019452,2]
[314928885,1708677048392,-1159.03,0.00019452,2]
[314928886,1708677048401,-500.0,0.00019452,2]
[314928887,1708677048410,-500.0,0.00019452,2]
[314928888,1708677048420,-500.0,0.00019452,2]
[314928889,1708677048429,-500.0,0.00019452,2]
[314928890,1708677048439,-2276.64,0.00019452,2]
[314928891,1708677048448,-500.0,0.00019452,2]
[314928892,1708677048458,-512.77637237,0.00019452,2]
[314928893,1708677048468,-500.0,0.00019452,2]
[314928894,1708677048478,-500.0,0.00019452,2]
[314928895,1708677048487,-500.0,0.00019452,2]
[314928896,1708677048496,-551.66,0.00019452,2]
[314928897,1708677048506,-656.24,0.00019452,2]
[314928898,1708677048515,-1264.9,0.00019452,2]
[314928899,1708677048524,-166.666666,0.00019627,2]
[314928900,1708677048533,-300.0,0.00019682,2]
[314928901,1708677048542,-580.0,0.000197,2]
[314928902,1708677048552,-500.0,0.00019725,2]
[314928903,1708677048561,-500.0,0.00019725,2]
[314928904,1708677048570,-2449.46,0.00019726,2]
[314928905,1708677048579,-500.0,0.00019726,2]
[314928906,1708677048588,-711.41,0.00019726,2]
[314928907,1708677048597,-500.0,0.00019726,2]
[314928908,1708677048606,-1428.95,0.00019726,2]
[314928909,1708677048615,-500.0,0.00019726,2]
[314928910,1708677048623,-500.0,0.00019726,2]
[314928911,1708677048633,-500.0,0.00019726,2]
[314928912,1708677048642,-582.12,0.00019726,2]
[314928913,1708677048650,-870.51,0.00019726,2]
[314928914,1708677048659,-190.84,0.00019726,2]
[314928915,1708677048668,-500.0,0.00019726,2]
[314928916,1708677048677,-1224.58,0.00019726,2]
[314928917,1708677048686,-4423.67,0.00019726,2]
[314928918,1708677048808,-7100.36,0.00019726,2]
[314928919,1708677048817,-1784.51,0.00019726,2]
[314928920,1708677048827,-1589.46,0.00019726,2]
[314928921,1708677048836,-841.07,0.00019726,2]
[314928922,1708677048845,-500.0,0.00019726,2]
[314928923,1708677048855,-500.0,0.00019726,2]
[314928924,1708677048864,-363.20021449,0.00019726,2]
[314928925,1708677048877,-532.24884834,0.00019726,2]
[314928926,1708677048890,-538.61450309,0.00019726,2]
[314928929,1708677272139,-524.93713581,0.0001828,2]
[314928935,1708677539027,283.92226433,0.0001828,30]
[314928937,1708677558945,283.92226433,0.0001828,30]
[314928938,1708677570372,283.92226433,0.0001828,30]
[314928940,1708677604957,283.92226433,0.0001828,30]
[314928941,1708677620950,283.92226433,0.0001828,30]
[314928942,1708677636950,238.70169253,0.0001828,30]
[314928943,1708677737777,1000.0,0.00021,21]
[314928944,1708677779597,1767.7569662,0.00017783,2]
[314928945,1708678092610,4377.2450224,0.00017876,2]
[314928946,1708678150685,2926.99896226,0.00017921,2]
[314929071,1708678234157,-524.93713581,0.00018063,2]
[314929072,1708678234168,-250.0,0.00018064,2]
[314929073,1708678234177,-155.05426899,0.00018081,2]
[314929074,1708678234186,-542.37411835,0.000189,2]
[314929075,1708678234196,-3554.16,0.00019,2]
[314929076,1708678234205,-822.13689835,0.00019,2]
[314929077,1708678234214,-174.83269631,0.00019078,2]
[314929078,1708678234223,-500.0,0.00019178,2]
[314929079,1708678234232,-500.0,0.00019178,2]
[314929080,1708678234244,-636.90447411,0.00019178,2]
[314929081,1708678234255,-500.0,0.00019178,2]
[314929082,1708678234264,-500.0,0.00019178,2]
[314929083,1708678234273,-500.0,0.00019178,2]
[314929084,1708678234285,-500.0,0.00019178,2]
[314929085,1708678234296,-527.34937538,0.00019178,2]
[314929086,1708678234309,-500.0,0.00019178,2]
[314929087,1708678234318,-787.27,0.00019178,2]
[314929088,1708678234327,-259.71713623,0.00019178,2]
[314929089,1708678234337,-500.0,0.00019178,2]
[314929090,1708678234346,-500.0,0.00019178,2]
[314929091,1708678234356,-500.0,0.00019178,2]
[314929092,1708678234366,-500.0,0.00019178,2]
[314929093,1708678234375,-404.87559415,0.00019178,2]
[314929094,1708678234384,-500.0,0.00019178,2]
[314929095,1708678234393,-1250.33,0.00019178,2]
[314929096,1708678234403,-500.0,0.00019178,2]
[314929097,1708678234413,-509.36,0.00019178,2]
[314929098,1708678234423,-586.66,0.00019178,2]
[314929099,1708678234433,-500.0,0.00019178,2]
[314929100,1708678234443,-545.56,0.00019178,2]
[314929101,1708678234453,-500.0,0.00019178,2]
[314929102,1708678234464,-500.0,0.00019178,2]
[314929103,1708678234473,-333.88,0.00019178,2]
[314929104,1708678234482,-325.98829797,0.00019178,2]
[314929105,1708678234494,-494.21,0.00019178,2]
[314929106,1708678234503,-500.0,0.00019178,2]
[314929107,1708678234517,-500.0,0.00019178,2]
[314929108,1708678234527,-500.0,0.00019178,2]
[314929109,1708678234537,-485.0,0.00019178,2]
[314929110,1708678234547,-289.0,0.00019178,2]
[314929111,1708678234559,-500.0,0.00019178,2]
[314929112,1708678234569,-521.99192232,0.00019178,2]
[314929113,1708678234580,-500.0,0.00019178,2]
[314929114,1708678234592,-500.0,0.00019178,2]
[314929115,1708678234603,-1561.44,0.00019178,2]
[314929116,1708678234612,-601.55,0.00019178,2]
[314929117,1708678234622,-500.0,0.00019178,2]
[314929118,1708678234631,-735.94,0.00019178,2]
[314929119,1708678234641,-500.0,0.00019178,2]
[314929120,1708678234650,-1685.51,0.00019178,2]
[314929121,1708678234660,-225.73623162,0.00019178,2]
[314929122,1708678234670,-502.27,0.00019178,2]
[314929123,1708678234680,-500.0,0.00019178,2]
[314929124,1708678234689,-500.0,0.00019178,2]
[314929125,1708678234698,-1321.37,0.00019178,2]
[314929126,1708678234707,-189.31610732,0.00019178,2]
[314929127,1708678234716,-2143.28,0.00019178,2]
[314929128,1708678234725,-583.5,0.00019178,2]
[314929129,1708678234735,-1159.49,0.00019178,2]
[314929130,1708678234744,-332.52172932,0.00019178,2]
[314929131,1708678234753,-2198.04,0.00019178,2]
[314929132,1708678234763,-500.0,0.00019178,2]
[314929133,1708678234773,-500.0,0.00019178,2]
[314929134,1708678234781,-500.0,0.00019178,2]
[314929135,1708678234790,-500.0,0.00019178,2]
[314929136,1708678234799,-932.47,0.00019178,2]
[314929137,1708678234808,-1551.15,0.00019178,2]
[314929138,1708678234817,-500.0,0.00019178,2]
[314929139,1708678234828,-500.0,0.00019178,2]
[314929140,1708678234837,-500.0,0.00019178,2]
[314929141,1708678234847,-500.0,0.00019178,2]
[314929142,1708678234856,-13421.88,0.00019178,2]
[314929143,1708678234866,-1756.64,0.00019178,2]
[314929144,1708678234876,-1333.36,0.00019178,2]
[314929145,1708678234884,-500.0,0.00019178,2]
[314929146,1708678234894,-1575.71,0.00019178,2]
[314929147,1708678234905,-1699.48,0.00019178,2]
[314929148,1708678234916,-1025.56591579,0.00019178,2]
[314929214,1708678245246,-847.83079337,0.00019178,2]
[314929215,1708678245258,-778.46329084,0.00019178,2]
[314929217,1708678245268,-587.94,0.00019178,2]
[314929218,1708678245278,-501.1601357,0.00019178,2]
[314929219,1708678245287,-168.12994995,0.00019178,2]
[314929224,1708678245394,-735.43005005,0.00019178,2]
[314929225,1708678245404,-14287.94,0.00019178,2]
[314929227,1708678245414,-622.48,0.00019178,2]
[314929229,1708678245423,-500.0,0.00019178,2]
[314929231,1708678245434,-501.22134572,0.00019178,2]
[314929234,1708678245444,-500.0,0.00019178,2]
[314929236,1708678245453,-936.56,0.00019178,2]
[314929238,1708678245462,-722.65,0.00019178,2]
[314929241,1708678245471,-505.08,0.00019178,2]
[314929242,1708678245481,-500.0,0.00019178,2]
[314929244,1708678245490,-1945.67,0.00019178,2]
[314929246,1708678245499,-551.81,0.00019178,2]
[314929248,1708678245508,-500.0,0.00019178,2]
[314929251,1708678245520,-508.6,0.00019178,2]
[314929252,1708678245530,-1062.44,0.00019178,2]
[314929255,1708678245539,-1070.11860419,0.00019178,2]
[314929260,1708678245564,-1.39139581,0.00019178,2]
[314929263,1708678245574,-174.56092939,0.00019178,2]
[314929266,1708678245582,-521.8,0.00019178,2]
[314929267,1708678245592,-3870.71,0.00019178,2]
[314929269,1708678245601,-500.0,0.00019178,2]
[314929271,1708678245610,-7351.77,0.00019178,2]
[314929273,1708678245620,-500.0,0.00019178,2]
[314929275,1708678245629,-1360.79420152,0.00019178,2]
[314929278,1708678245647,-862.0756775,0.00019178,2]
[314929292,1708678245765,-3989.95012098,0.00019178,2]
[314929294,1708678245774,-450.82987902,0.00019178,2]
[314929296,1708678245786,-54.86012098,0.00019178,2]
[314929298,1708678245795,-255.54300377,0.00019178,2]
[314929311,1708678245807,-1230.97699623,0.00019178,2]
[314929314,1708678245934,-166.666666,0.00019178,2]
[314929316,1708678245943,-306.33671545,0.00019342,3]
[314929328,1708678246135,-352.5,0.00019342,3]
[314929363,1708678461154,156.0715124,0.000176,2]
[314929366,1708678959098,151.0,0.000176,2]
[314929367,1708679156224,225.09983032,0.00017552,2]
[314929368,1708679260278,-2792249.0119673,0.00028149,60]
[314929369,1708679260307,-500.0,0.00028149,120]
[314929370,1708679260330,-403.0536577,0.00028149,120]
[314929371,1708679260353,-555.5000911,0.00028149,120]
[314929372,1708679260528,-968.96751337,0.00028149,120]
[314929373,1708679260554,-212.13775378,0.00028149,120]
[314929374,1708679260579,-1151.60434661,0.00028149,120]
[314929375,1708679260602,-498.79139269,0.00028149,120]
[314929376,1708679260625,-170.0,0.00028149,120]
[314929377,1708679260647,-3384.01640789,0.00028149,60]
[314929378,1708679260670,-2000.0,0.00028149,120]
[314929379,1708679260693,-2643.29659766,0.00028149,120]
[314929380,1708679260716,-10084.14500604,0.00028149,35]
[314929381,1708679260738,-1404.9862713,0.00028149,120]
[314929382,1708679260760,-2450.54817672,0.00028149,120]
[314929383,1708679260783,-150.39115344,0.00028149,120]
[314929434,1708679433957,-480.04490054,0.0001885,2]
[314929468,1708679439506,-1381.87652055,0.0001885,2]
[314929470,1708679439516,-289.94707559,0.00018851,2]
[314929472,1708679439525,-155.08064193,0.00018852,2]
[314929474,1708679439535,-361.58274556,0.000189,2]
[314929476,1708679439544,-1725.38029265,0.00019,2]
[314929478,1708679439553,-156.99247221,0.00019078,2]
[314929480,1708679439562,-300.0,0.00019099,2]
[314929482,1708679439571,-6188.45655987,0.000191,2]
[314929484,1708679439581,-233.88,0.00019168,3]
[314929486,1708679439590,-213.51680516,0.00019176,2]
[314929488,1708679439599,-500.0,0.00019178,2]
[314929490,1708679439608,-500.0,0.00019178,2]
[314929491,1708679439619,-601.9,0.00019178,2]
[314929493,1708679439628,-506.86,0.00019178,2]
[314929495,1708679439637,-500.0,0.00019178,2]
[314929497,1708679439646,-500.0,0.00019178,2]
[314929499,1708679439655,-500.0,0.00019178,2]
[314929501,1708679439665,-215.67076236,0.00019178,2]
[314929503,1708679439676,-303.39597932,0.00019178,2]
[314929505,1708679439685,-500.0,0.00019178,2]
[314929507,1708679439696,-500.0,0.00019178,2]
[314929509,1708679439705,-1254.21,0.00019178,2]
[314929511,1708679439714,-2096.58,0.00019178,2]
[314929512,1708679439722,-526.39,0.00019178,2]
[314929514,1708679439732,-186.64,0.00019178,2]
[314929516,1708679439740,-500.0,0.00019178,2]
[314929518,1708679439749,-501.57235247,0.00019178,2]
[314929520,1708679439758,-500.0,0.00019178,2]
[314929522,1708679439767,-500.0,0.00019178,2]
[314929524,1708679439776,-549.76851294,0.00019178,2]
[314929526,1708679439785,-709.98,0.00019178,2]
[314929528,1708679439794,-502.97562093,0.00019178,2]
[314929530,1708679439803,-500.0,0.00019178,2]
[314929532,1708679439812,-499.94,0.00019178,2]
[314929534,1708679439821,-500.0,0.00019178,2]
[314929536,1708679439830,-544.48,0.00019178,2]
[314929538,1708679439839,-500.0,0.00019178,2]
[314929540,1708679439848,-500.0,0.00019178,2]
[314929542,1708679439857,-500.0,0.00019178,2]
[314929544,1708679439866,-305.08549894,0.00019178,2]
[314929546,1708679439878,-500.0,0.00019178,2]
[314929548,1708679439887,-500.0,0.00019178,2]
[314929550,1708679439896,-500.0,0.00019178,2]
[314929551,1708679439905,-501.36810691,0.00019178,2]
[314929553,1708679439914,-1792.33,0.00019178,2]
[314929555,1708679439924,-559.40281713,0.00019178,2]
[314929557,1708679439933,-377.92,0.00019178,2]
[314929559,1708679439944,-500.0,0.00019178,2]
[314929561,1708679439954,-861.73,0.00019178,2]
[314929563,1708679439963,-500.0,0.00019178,2]
[314929565,1708679439973,-352.48833486,0.00019178,2]
[314929567,1708679439983,-1887.42,0.00019178,2]
[314929569,1708679439994,-500.0,0.00019178,2]
[314929571,1708679440003,-500.0,0.00019178,2]
[314929573,1708679440012,-2403.49,0.00019178,2]
[314929575,1708679440022,-500.0,0.00019178,2]
[314929577,1708679440031,-1659.55,0.00019178,2]
[314929579,1708679440041,-927.81,0.00019178,2]
[314929581,1708679440051,-500.0,0.00019178,2]
[314929583,1708679440061,-1253.79,0.00019178,2]
[314929585,1708679440070,-500.829993,0.00019178,2]
[314929587,1708679440080,-254.41198716,0.00019178,2]
[314929589,1708679440090,-500.0,0.00019178,2]
[314929591,1708679440100,-500.0,0.00019178,2]
[314929593,1708679440109,-500.0,0.00019178,2]
[314929594,1708679440119,-500.0,0.00019178,2]
[314929596,1708679440129,-500.0,0.00019178,2]
[314929598,1708679440138,-500.0,0.00019178,2]
[314929600,1708679440148,-500.0,0.00019178,2]
[314929602,1708679440158,-500.0,0.00019178,2]
[314929604,1708679440167,-500.0,0.00019178,2]
[314929606,1708679440176,-500.0,0.00019178,2]
[314929608,1708679440186,-500.0,0.00019178,2]
[314929610,1708679440197,-1409.86,0.00019178,2]
[314929612,1708679440206,-500.0,0.00019178,2]
[314929614,1708679440215,-14298.22,0.00019178,2]
[314929615,1708679440225,-1837.54,0.00019178,2]
[314929617,1708679440234,-500.0,0.00019178,2]
[314929619,1708679440243,-500.0,0.00019178,2]
[314929621,1708679440253,-500.0,0.00019178,2]
[314929623,1708679440263,-1032.53,0.00019178,2]
[314929625,1708679440272,-500.0,0.00019178,2]
[314929627,1708679440281,-500.0,0.00019178,2]
[314929629,1708679440291,-500.0,0.00019178,2]
[314929631,1708679440300,-500.0,0.00019178,2]
[314929633,1708679440309,-500.0,0.00019178,2]
[314929635,1708679440318,-500.0,0.00019178,2]
[314929637,1708679440329,-500.0,0.00019178,2]
[314929639,1708679440338,-500.0,0.00019178,2]
[314929640,1708679440347,-500.0,0.00019178,2]
[314929641,1708679440356,-15702.06,0.00019178,2]
[314929643,1708679440365,-500.0,0.00019178,2]
[314929644,1708679440375,-1890.11,0.00019178,2]
[314929646,1708679440384,-500.0,0.00019178,2]
[314929647,1708679440393,-500.0,0.00019178,2]
[314929648,1708679440402,-2097.2,0.00019178,2]
[314929649,1708679440411,-1033.84,0.00019178,2]
[314929650,1708679440420,-2910.16,0.00019178,2]
[314929651,1708679440430,-1056.3,0.00019178,2]
[314929652,1708679440442,-500.0,0.00019178,2]
[314929653,1708679440451,-374.44173676,0.00019178,2]
[314929654,1708679440460,-500.0,0.00019178,2]
[314929655,1708679440470,-620.17,0.00019178,2]
[314929656,1708679440479,-500.0,0.00019178,2]
[314929657,1708679440489,-501.47582872,0.00019178,2]
[314929658,1708679440498,-1207.28,0.00019178,2]
[314929659,1708679440507,-500.0,0.00019178,2]
[314929660,1708679440517,-500.0,0.00019178,2]
[314929661,1708679440526,-805.54,0.00019178,2]
[314929662,1708679440535,-500.0,0.00019178,2]
[314929664,1708679440544,-500.0,0.00019178,2]
[314929666,1708679440553,-503.94439511,0.00019178,2]
[314929667,1708679440563,-500.0,0.00019178,2]
[314929668,1708679440572,-1221.66,0.00019178,2]
[314929669,1708679440581,-500.0,0.00019178,2]
[314929670,1708679440590,-500.0,0.00019178,2]
[314929671,1708679440599,-7890.36,0.00019178,2]
[314929672,1708679440608,-500.0,0.00019178,2]
[314929673,1708679440617,-4243.17,0.00019178,2]
[314929674,1708679440627,-1412.69,0.00019178,2]
[314929675,1708679440636,-500.0,0.00019178,2]
[314929676,1708679440646,-500.0,0.00019178,2]
[314929677,1708679440655,-6786.06,0.00019178,2]
[314929678,1708679440664,-500.0,0.00019178,2]
[314929679,1708679440674,-177.448633,0.00019178,2]
[314929680,1708679440683,-170.8219804,0.00019178,2]